bitfinex-derivatives/quotes_BNBF0:USTF0_20250708
["timestamp","ask_amount","ask_price","bid_price","bid_amount"]
[1751985729913,1.69495719,660.5,660.22,1.45]
[1751985730714,1.69495719,660.45,660.22,1.45]
[1751985731310,1.69495719,660.39,660.22,1.45]
[1751985732215,1.69495719,660.41,660.22,1.45]
[1751985733213,1.69495719,660.42,660.22,1.45]
[1751985734218,1.69495719,660.43,660.22,1.45]
[1751985734518,1.69495719,660.44,660.22,1.45]
[1751985735217,1.69495719,660.45,660.22,1.45]
[1751985736018,1.69495719,660.46,660.22,1.45]
[1751985736313,1.69495719,660.47,660.22,1.45]
[1751985737015,1.69495719,660.47,659.73,0.26351259]
[1751985737223,1.69495719,660.48,659.73,0.26351259]
[1751985737712,1.69495719,660.47,659.73,0.26351259]
[1751985738218,1.69495719,660.48,659.73,0.26351259]
[1751985739318,1.69495719,660.49,659.73,0.26351259]
[1751985739819,1.69495719,660.48,659.73,0.26351259]
[1751985740320,1.69495719,660.48,659.74,1.574]
[1751985740819,1.69495719,660.47,659.74,1.574]
[1751985741220,1.69495719,660.48,659.74,1.574]
[1751985743323,1.69495719,660.49,659.74,1.574]
[1751985743920,1.69495719,660.45,659.74,1.574]
[1751985744420,1.69495719,660.46,659.74,1.574]
[1751985747323,1.69495719,660.47,659.74,1.574]
[1751985747526,1.69495719,660.46,659.74,1.574]
[1751985748227,1.69495719,660.47,659.74,1.574]
[1751985752126,1.69495719,660.48,659.74,1.574]
[1751985753834,1.69495719,660.45,659.74,1.574]
[1751985756535,0.97842163,660.53,659.74,1.574]
[1751985756834,1.68147303,660.44,659.74,1.574]
[1751985758430,1.68147303,660.43,659.74,1.574]
[1751985761235,1.68147303,660.42,659.74,1.574]
[1751985762136,1.68147303,660.47,659.74,1.574]
[1751985763434,1.68147303,660.46,659.74,1.574]
[1751985764036,1.68147303,660.47,659.74,1.574]
[1751985764336,1.68147303,660.46,659.74,1.574]
[1751985765335,1.68147303,660.45,659.74,1.574]
[1751985766441,1.68147303,660.44,659.74,1.574]
[1751985767439,1.68147303,660.43,659.74,1.574]
[1751985768540,1.68147303,660.42,659.74,1.574]
[1751985769343,1.68147303,660.41,659.74,1.574]
[1751985770343,0.97874737,660.56,659.74,1.574]
[1751985770344,1.68147303,660.39,659.74,1.574]
[1751985771340,1.68147303,660.38,659.74,1.574]
[1751985772045,1.68147303,660.36,659.74,1.574]
[1751985772541,0.97874737,660.49,659.74,1.574]
[1751985772542,1.68147303,660.35,659.74,1.574]
[1751985773241,1.68147303,660.34,659.74,1.574]
[1751985773844,1.68147303,660.32,659.74,1.574]
[1751985774445,1.68147303,660.34,659.57,1.69052603]
[1751985775142,1.68147303,660.35,659.57,1.69052603]
[1751985775342,1.68147303,660.34,659.57,1.69052603]
[1751985775947,1.68147303,660.35,659.58,1.69052603]
[1751985776347,1.68147303,660.34,659.58,1.69052603]
[1751985776947,1.68147303,660.34,659.59,1.863]
[1751985777449,1.68147303,660.33,659.59,1.863]
[1751985778451,1.68147303,660.31,659.6,1.69052603]
[1751985779051,1.68147303,660.32,659.6,1.69052603]
[1751985779251,1.68147303,660.31,659.6,1.69052603]
[1751985781355,1.68147303,660.3,659.61,1.69052603]
[1751985782253,1.68147303,660.29,659.62,1.69052603]
[1751985782659,1.68147303,660.28,659.62,1.69052603]
[1751985783453,1.68147303,660.27,659.63,1.69052603]
[1751985784257,1.68147303,660.24,659.67,1.69052603]
[1751985785157,1.68147303,660.23,659.68,1.69052603]
[1751985785457,1.68147303,660.23,659.69,1.69052603]
[1751985785956,1.68147303,660.23,659.59,1.863]
[1751985785957,1.68147303,660.24,659.67,1.69052603]
[1751985786353,1.68147303,660.23,659.68,1.69052603]
[1751985786857,1.68147303,660.22,659.69,1.69052603]
[1751985787257,1.68147303,660.22,659.7,1.69052603]
[1751985787757,1.68147303,660.23,659.69,1.69052603]
[1751985788259,1.68147303,660.22,659.69,1.69052603]
[1751985788558,1.68147303,660.22,659.7,1.69052603]
[1751985789260,1.68147303,660.2,659.71,1.69052603]
[1751985790260,1.68147303,660.19,659.72,1.69052603]
[1751985791259,1.68147303,660.18,659.73,1.69052603]
[1751985793762,1.69312195,660.18,659.73,1.70284938]
[1751985795661,1.69312195,660.17,659.74,1.70284938]
[1751985796162,1.69312195,660.18,659.74,1.70284938]
[1751985796462,1.69312195,660.17,659.74,1.70284938]
[1751985797658,1.69312195,660.16,659.76,1.70284938]
[1751985799566,1.69312195,660.15,659.77,1.70284938]
[1751985799960,1.69312195,660.15,659.65,2.25824111]
[1751985799961,1.69312195,660.16,659.76,1.70284938]
[1751985800164,1.69312195,660.15,659.76,1.70284938]
[1751985803168,1.69312195,660.14,659.77,1.70284938]
[1751985803968,1.69312195,660.16,659.74,1.70284938]
[1751985805572,1.69312195,660.17,659.73,1.70284938]
[1751985806071,1.69312195,660.18,659.71,1.70284938]
[1751985806368,1.69312195,660.19,659.7,1.70284938]
[1751985806967,1.69312195,660.19,659.71,1.70284938]
[1751985807370,0.98622226,660.34,659.59,1.863]
[1751985807569,1.69476658,660.19,659.71,1.70450922]
[1751985809772,1.69476658,660.19,659.7,1.70450922]
[1751985809970,1.69476658,660.19,659.71,1.70450922]
[1751985810674,1.69476658,660.19,659.7,1.70450922]
[1751985810870,1.69476658,660.2,659.7,1.70450922]
[1751985811376,1.69476658,660.19,659.7,1.70450922]
[1751985812572,1.69476658,660.2,659.7,1.70450922]
[1751985813274,1.69476658,660.19,659.7,1.70450922]
[1751985813873,1.69476658,660.19,659.71,1.70450922]
[1751985815277,1.69476658,660.19,659.72,1.70450922]
[1751985815978,1.69476658,660.18,659.73,1.70450922]
[1751985816175,1.69476658,660.18,659.74,1.70450922]
[1751985818282,1.69476658,660.17,659.74,1.70450922]
[1751985818581,1.69476658,660.23,659.66,1.70450922]
[1751985818979,1.69476658,660.32,659.75,1.70450922]
[1751985819282,1.69476658,660.35,659.74,1.70450922]
[1751985820484,1.69476658,660.36,659.73,1.70450922]
[1751985821381,1.69476658,660.37,659.73,1.70450922]
[1751985822383,1.69476658,660.37,659.72,1.70450922]
[1751985823285,1.69476658,660.38,659.72,1.70450922]
[1751985823981,1.69476658,660.38,659.55,0.26364136]
[1751985823982,1.69476658,660.38,659.71,1.70450922]
[1751985824982,1.69476658,660.38,659.72,2.106]
[1751985825282,1.69476658,660.39,659.72,2.106]
[1751985828389,1.69476658,660.35,659.76,1.70450922]
[1751985829690,1.69476658,660.34,659.78,1.70450922]
[1751985830390,1.69476658,660.34,659.77,1.70450922]
[1751985832092,1.69476658,660.34,659.78,1.70450922]
[1751985832392,1.69476658,660.34,659.77,1.70450922]
[1751985832993,1.69476658,660.35,659.77,1.70450922]
[1751985833594,1.69476658,660.34,659.76,1.70450922]
[1751985833790,0.26349663,660.61,659.78,1.70450922]
[1751985833791,1.69476658,660.32,659.78,1.70450922]
[1751985834489,1.69476658,660.33,659.79,1.70450922]
[1751985834889,1.69476658,660.33,659.78,1.70450922]
[1751985835193,1.69476658,660.34,659.77,1.70450922]
[1751985835798,1.69476658,660.32,659.8,1.70450922]
[1751985836893,1.69476658,660.32,659.81,1.70450922]
[1751985837095,1.69476658,660.29,659.73,1.70450922]
[1751985839398,1.69476658,660.27,659.72,3.81050922]
[1751985840999,1.69476658,660.27,659.72,2.106]
[1751985843206,1.69476658,660.26,659.72,2.106]
[1751985843504,1.69476658,660.27,659.72,2.106]
[1751985843909,1.69476658,660.26,659.72,2.106]
[1751985844304,1.69476658,660.26,659.72,3.81050922]
[1751985844810,1.69476658,660.27,659.72,2.106]
[1751985845310,1.69476658,660.26,659.72,2.106]
[1751985847413,1.69476658,660.25,659.73,1.70450922]
[1751985847710,1.69476658,660.25,659.72,3.81050922]
[1751985847910,1.69476658,660.26,659.73,1.70450922]
[1751985852917,1.69476658,660.27,659.72,2.106]
[1751985853415,1.69237808,660.27,659.72,2.106]
[1751985853913,0.98538652,660.4,659.72,2.106]
[1751985854113,2.26254195,660.41,659.72,2.106]
[1751985854114,1.6923782,660.27,659.72,3.80704239]
[1751985854814,1.6923782,660.26,659.72,3.80704239]
[1751985856218,1.6923782,660.26,659.73,1.70104239]
[1751985857322,1.6923782,660.25,659.74,1.70104239]
[1751985858924,1.6923782,660.27,659.72,2.106]
[1751985861024,1.6923782,660.27,659.71,1.70104239]
[1751985862721,1.6923782,660.26,659.72,1.70104239]
[1751985863725,1.6923782,660.26,659.73,1.476]
[1751985865325,1.6923782,660.26,659.73,3.17704239]
[1751985866932,1.6923782,660.26,659.73,1.476]
[1751985868232,1.6923782,660.26,659.73,3.17704239]
[1751985868932,1.6923782,660.24,659.75,1.70104239]
[1751985869132,1.6923782,660.24,659.76,1.70104239]
[1751985870433,1.6923782,660.23,659.76,1.70104239]
[1751985871332,1.6923782,660.23,659.77,1.70104239]
[1751985873132,1.6923782,660.24,659.76,1.70104239]
[1751985874033,1.6923782,660.25,659.77,1.70104239]
[1751985875633,1.6923782,660.27,659.74,1.70104239]
[1751985877633,1.6923782,660.26,659.74,1.70104239]
[1751985879937,1.6923782,660.27,659.74,1.70104239]
[1751985880238,1.6923782,660.26,659.74,1.70104239]
[1751985881334,1.6923782,660.27,659.73,3.17704239]
[1751985885234,1.6923782,660.27,659.74,1.70104239]
[1751985885434,1.6923782,660.25,659.76,1.70104239]
[1751985886337,1.6923782,660.24,659.76,1.70104239]
[1751985888041,1.6923782,660.24,659.77,1.70104239]
[1751985889940,1.6923782,660.23,659.78,1.70104239]
[1751985891237,1.6923782,660.21,659.8,1.70104239]
[1751985892441,1.6923782,660.21,659.81,1.70104239]
[1751985893942,1.6923782,660.2,659.83,1.70104239]
[1751985894343,1.6923782,660.19,659.83,1.70104239]
[1751985895341,1.6923782,660.19,659.84,1.70104239]
[1751985896348,1.6923782,660.18,659.84,1.70104239]
[1751985896546,1.6923782,660.19,659.83,1.70104239]
[1751985897441,1.6923782,660.19,659.84,1.70104239]
[1751985897640,1.6923782,660.18,659.84,1.70104239]
[1751985898042,1.6923782,660.19,659.84,1.70104239]
[1751985898446,1.6923782,660.21,659.81,1.70104239]
[1751985899348,1.6923782,660.2,659.81,1.70104239]
[1751985899550,1.6923782,660.21,659.81,1.70104239]
[1751985900347,1.6923782,660.31,659.68,1.70104239]
[1751985900550,1.6923782,660.4,659.76,1.70104239]
[1751985901553,1.6923782,660.41,659.74,1.70104239]
[1751985902452,1.6923782,660.42,659.73,1.70104239]
[1751985902650,1.6923782,660.42,659.75,1.559]
[1751985903655,1.6923782,660.43,659.75,1.559]
[1751985904154,1.6923782,660.42,659.75,1.559]
[1751985904356,1.6923782,660.4,659.76,1.70104239]
[1751985904557,1.6923782,660.38,659.79,1.70104239]
[1751985905351,1.6923782,660.38,659.78,1.70104239]
[1751985905752,0.98662542,660.54,659.78,1.70104239]
[1751985905753,1.6923782,660.37,659.78,1.70104239]
[1751985906256,1.6923782,660.38,659.77,1.70104239]
[1751985910262,1.6923782,660.34,659.83,1.70104239]
[1751985911864,1.6923782,660.34,659.84,1.70104239]
[1751985912067,1.6923782,660.34,659.83,1.70104239]
[1751985912365,1.6923782,660.34,659.84,1.70104239]
[1751985912966,1.6923782,660.33,659.85,1.70104239]
[1751985919174,1.6923782,660.34,659.84,1.70104239]
[1751985922074,0.26361839,660.35,659.78,1.70104239]
[1751985922372,0.26361839,660.35,659.75,1.559]
[1751985922568,0.26361839,660.35,659.77,1.70104239]
[1751985922773,0.26361839,660.35,659.76,1.70104239]
[1751985922968,1.6923782,660.26,659.75,1.559]
[1751985923173,1.6923782,660.18,659.75,1.559]
[1751985923369,1.6923782,660.19,659.75,1.559]
[1751985923774,1.6923782,660.18,659.75,1.559]
[1751985924070,1.6923782,660.16,659.75,1.559]
[1751985924473,1.6923782,660.15,659.75,1.559]
[1751985925368,1.6923782,660.16,659.75,1.559]
[1751985925775,1.6923782,660.06,659.75,1.559]
[1751985926479,1.6923782,660.07,659.75,1.559]
[1751985927281,1.69072535,660.07,659.75,1.559]
[1751985927482,1.69072535,660.08,659.75,1.559]
[1751985928282,1.69072535,660.12,659.75,1.559]
[1751985928685,1.69072535,660.03,659.75,1.559]
[1751985928885,1.69072535,660.02,659.75,1.559]
[1751985929285,1.69072535,660.04,659.75,1.559]
[1751985929786,1.69072535,660.03,659.75,1.559]
[1751985929985,1.69072535,660.02,659.75,1.559]
[1751985930381,1.69072535,660.03,659.75,1.559]
[1751985930679,1.69072535,659.95,659.75,1.559]
[1751985931281,1.69072535,659.94,659.75,1.559]
[1751985931586,1.69072535,659.95,659.75,1.559]
[1751985931780,1.69072535,659.88,659.75,1.559]
[1751985933185,1.69072535,659.89,659.75,1.559]
[1751985933684,1.69072535,659.92,659.75,1.559]
[1751985934085,1.69072535,659.91,659.75,1.559]
[1751985934389,1.69072535,659.93,659.75,1.559]
[1751985934586,1.69072535,659.94,659.75,1.559]
[1751985934785,1.69072535,659.96,659.75,1.559]
[1751985935184,1.69072535,659.97,659.75,1.559]
[1751985935386,1.69072535,659.99,659.75,1.559]
[1751985936290,1.69072535,660.01,659.75,1.559]
[1751985936692,1.69072535,660.07,659.75,1.559]
[1751985937088,1.69072535,660.11,659.75,1.559]
[1751985937290,0.98203408,660.1,659.75,1.559]
[1751985937587,0.97801487,660.09,659.75,1.559]
[1751985937788,0.97801487,660.11,659.75,1.559]
[1751985937987,0.97801487,660.1,659.75,1.559]
[1751985938186,0.97801487,660.09,659.75,1.559]
[1751985938386,0.97801487,660.12,659.75,1.559]
[1751985938687,0.97801487,660.11,659.75,1.559]
[1751985938890,0.97801487,660.1,659.75,1.559]
[1751985939088,0.97801487,660.09,659.75,1.559]
[1751985939289,0.97801487,660.12,659.75,1.559]
[1751985939589,0.26361839,660.35,659.75,1.559]
[1751985939590,0.97801487,660.11,659.75,1.559]
[1751985939792,0.97801487,660.1,659.75,1.559]
[1751985939992,0.97801487,660.21,659.75,1.559]
[1751985940188,0.97801487,660.2,659.75,1.559]
[1751985940393,0.97701379,660.19,659.75,1.559]
[1751985940691,0.97701379,660.18,659.75,1.559]
[1751985940890,0.97701379,660.17,659.75,1.559]
[1751985941095,0.97701379,660.2,659.75,1.559]
[1751985941294,0.97701379,660.19,659.75,1.559]
[1751985941494,0.97701379,660.18,659.75,1.559]
[1751985941794,0.97701379,660.17,659.13,1.70028782]
[1751985941994,0.97701379,660.21,659.13,1.70028782]
[1751985942193,0.97701379,660.2,659.13,1.70028782]
[1751985942494,0.97701379,660.19,659.13,1.70028782]
[1751985942794,0.97701379,660.18,659.13,1.70028782]
[1751985942992,0.97701379,660.17,659.15,1.70028782]
[1751985943192,0.97701379,660.16,659.14,1.70028782]
[1751985943391,0.97701379,660.21,659.14,1.70028782]
[1751985943591,0.97701379,660.2,659.14,1.70028782]
[1751985943792,0.97701379,660.19,659.14,1.70028782]
[1751985944090,1.69072535,660.22,659.14,1.70028782]
[1751985944894,1.69072535,660.22,659.15,1.556]
[1751985945096,1.69072535,660.22,659.15,3.25628782]
[1751985945295,2.66773914,660.21,659.16,1.70028782]
[1751985945496,0.97701379,660.2,659.16,1.70028782]
[1751985946493,0.97701379,660.21,659.16,1.70028782]
[1751985946792,0.97701379,660.2,659.16,1.70028782]
[1751985946996,0.97701379,660.21,659.16,1.70028782]
[1751985947293,0.97701379,660.2,659.16,1.70028782]
[1751985947492,0.97701379,660.21,659.16,1.70028782]
[1751985947694,0.97701379,660.2,659.16,1.70028782]
[1751985947893,0.97701379,660.21,659.16,1.70028782]
[1751985948096,0.97701379,660.2,659.16,1.70028782]
[1751985948293,0.97701379,660.21,659.16,1.70028782]
[1751985948499,2.66773914,660.2,659.15,1.556]
[1751985948695,0.97701379,660.19,659.15,1.556]
[1751985948899,0.97701379,660.18,659.15,1.556]
[1751985949098,1.69072535,660.19,659.16,1.70028782]
[1751985949300,0.97616832,660.18,659.16,1.70028782]
[1751985949501,0.97616832,660.17,659.16,1.70028782]
[1751985949697,0.97616832,660.18,659.16,1.70028782]
[1751985949901,0.97616832,660.17,659.16,1.70028782]
[1751985950102,0.97616832,660.18,659.16,1.70028782]
[1751985950301,0.97616832,660.17,659.15,3.25628782]
[1751985950496,0.97616832,660.19,659.15,3.25628782]
[1751985950700,0.97616832,660.18,659.16,1.70028782]
[1751985950900,0.97616832,660.17,659.16,1.70028782]
[1751985951203,0.97616832,660.19,659.16,1.70028782]
[1751985951399,0.97616832,660.18,659.16,1.70028782]
[1751985951698,0.97616832,660.19,659.15,3.25628782]
[1751985951903,0.97616832,660.18,659.15,3.25628782]
[1751985952103,0.97616832,660.2,659.15,3.25628782]
[1751985952298,0.97616832,660.19,659.15,3.25628782]
[1751985952499,0.97616832,660.18,659.15,3.25628782]
[1751985952702,0.97616832,660.17,659.15,3.25628782]
[1751985952900,0.97616832,660.2,659.15,3.25628782]
[1751985953100,0.97616832,660.19,659.16,1.70028782]
[1751985953300,0.97616832,660.18,659.16,1.70028782]
[1751985953598,0.97616832,660.17,659.16,1.70028782]
[1751985953900,0.97616832,660.19,659.16,1.70028782]
[1751985954099,0.97616832,660.18,659.16,1.70028782]
[1751985954303,0.97616832,660.17,659.16,1.70028782]
[1751985954503,0.97616832,660.2,659.16,1.70028782]
[1751985954799,0.97616832,660.19,659.16,1.70028782]
[1751985955003,0.97616832,660.18,659.16,1.70028782]
[1751985955203,0.97616832,660.17,659.15,3.25628782]
[1751985955400,0.97616832,660.16,659.16,1.70028782]
[1751985955604,0.97616832,660.2,659.16,1.70028782]
[1751985955904,0.97616832,660.19,659.16,1.70028782]
[1751985956101,0.97616832,660.18,659.16,1.70028782]
[1751985956303,0.97616832,660.17,659.16,1.70028782]
[1751985956503,0.97616832,660.16,659.15,3.25628782]
[1751985956700,0.97616832,660.2,659.15,1.556]
[1751985956899,0.97616832,660.19,659.15,1.556]
[1751985957099,0.97616832,660.18,659.15,1.556]
[1751985957303,0.97616832,660.17,659.15,1.556]
[1751985957504,0.97616832,660.16,659.15,3.25628782]
[1751985957799,0.97616832,660.19,659.15,3.25628782]
[1751985958000,0.97616832,660.18,659.15,3.25628782]
[1751985958204,0.97616832,660.17,659.15,1.556]
[1751985958404,0.97616832,660.16,659.15,3.25628782]
[1751985958601,0.97616832,660.19,659.15,3.25628782]
[1751985958801,0.97616832,660.18,659.15,3.25628782]
[1751985959000,0.97616832,660.17,659.15,3.25628782]
[1751985959204,0.97616832,660.16,659.15,3.25628782]
[1751985959401,2.66689367,660.2,659.15,3.25628782]
[1751985959700,0.97616832,660.19,659.15,3.25628782]
[1751985959904,0.97616832,660.18,659.15,1.556]
[1751985960200,0.97616832,660.17,659.15,1.556]
[1751985960400,0.97616832,660.16,659.15,1.556]
[1751985960604,0.97616832,660.19,659.15,1.556]
[1751985960804,0.97616832,660.18,659.15,1.556]
[1751985961004,0.97616832,660.17,659.15,1.556]
[1751985961203,0.97616832,660.16,659.15,1.556]
[1751985961403,0.97616832,660.15,659.15,1.556]
[1751985961606,0.97616832,660.14,659.15,3.25628782]
[1751985961801,0.97616832,660.13,659.15,3.25628782]
[1751985962002,0.97616832,660.12,659.15,3.25628782]
[1751985962307,0.97616832,660.11,659.15,1.556]
[1751985962607,0.97616832,660.1,659.15,1.556]
[1751985962806,0.97616832,660.13,659.15,1.556]
[1751985963108,0.97616832,660.12,659.15,1.556]
[1751985963304,0.97616832,660.11,659.15,1.556]
[1751985963607,0.97616832,660.1,659.15,1.556]
[1751985963803,0.97616832,660.09,659.15,1.556]
[1751985964007,0.97616832,660.08,659.07,1.70028782]
[1751985964205,0.97616832,660.07,659.07,1.70028782]
[1751985964505,0.97616832,660.06,659.07,1.70028782]
[1751985964704,0.97616832,660.05,659.07,1.70028782]
[1751985964904,0.97616832,660.04,659.06,1.70028782]
[1751985965107,0.97616832,660.13,659.06,1.70028782]
[1751985965409,0.97616832,660.12,659.06,1.70028782]
[1751985965606,0.97616832,660.11,659.06,1.70028782]
[1751985965803,0.97616832,660.1,659.06,1.70028782]
[1751985966007,0.97616832,660.09,659.06,1.70028782]
[1751985966208,0.97616832,660.08,659.06,1.70028782]
[1751985966405,0.97616832,660.07,659.06,1.70028782]
[1751985966604,0.97616832,660.06,659.06,1.70028782]
[1751985966908,0.97616832,660.05,659.07,1.519]
[1751985967106,0.97616832,660.04,659.07,1.519]
[1751985967304,0.97616832,660.12,659.07,1.519]
[1751985967510,0.97616832,660.11,659.07,1.519]
[1751985967808,0.97616832,660.1,659.07,1.519]
[1751985968108,0.97616832,660.09,659.07,1.519]
[1751985968408,0.97616832,660.08,659.07,3.21928782]
[1751985968708,0.97616832,660.07,659.07,1.519]
[1751985968909,0.97616832,660.06,659.07,1.519]
[1751985969104,0.97616832,660.05,659.07,1.519]
[1751985969310,0.97616832,660.04,659.07,1.519]
[1751985969505,0.97616832,660.03,659.07,3.21928782]
[1751985969708,0.97616832,660.02,659.07,3.21928782]
[1751985969908,2.66689367,660.12,659.07,3.21928782]
[1751985970111,0.97616832,660.11,659.07,3.21928782]
[1751985970313,0.97616832,660.1,659.07,3.21928782]
[1751985970610,0.97616832,660.09,659.07,3.21928782]
[1751985970908,0.97616832,660.08,659.07,1.519]
[1751985971114,0.97616832,660.07,659.07,1.519]
[1751985971414,0.97616832,660.06,659.07,1.519]
[1751985971712,1.69072535,660.03,659.07,1.519]
[1751985971913,0.97659948,660.02,659.07,1.519]
[1751985972209,0.97659948,660.01,659.07,1.519]
[1751985972412,0.97659948,660.0,659.07,1.519]
[1751985972609,0.97659948,659.99,659.07,1.519]
[1751985972808,0.97659948,659.98,659.07,1.519]
[1751985973012,0.97659948,659.97,659.07,1.519]
[1751985973209,0.97659948,659.96,659.07,1.519]
[1751985973512,2.65610321,660.01,659.07,1.519]
[1751985973713,0.97659948,660.0,659.07,1.519]
[1751985973907,0.97659948,659.99,659.07,1.519]
[1751985974109,0.97659948,660.03,659.07,1.519]
[1751985974413,1.67950373,660.07,659.07,1.519]
[1751985975210,1.67950373,660.08,659.07,1.519]
[1751985975415,1.67950373,660.06,659.07,1.519]
[1751985975616,1.67950373,660.03,659.07,1.519]
[1751985976218,1.67950373,660.04,659.07,1.519]
[1751985976418,1.67950373,660.02,659.07,1.519]
[1751985977213,1.67950373,660.03,659.07,1.519]
[1751985977414,1.67950373,660.01,659.07,1.519]
[1751985978515,1.67950373,659.94,659.07,1.519]
[1751985978714,1.67950373,659.93,659.07,1.519]
[1751985979418,1.67950373,659.9,659.07,1.519]
[1751985980317,1.67950373,659.88,659.07,1.519]
[1751985980520,1.67950373,660.02,659.12,1.69030139]
[1751985980716,1.67950373,660.03,659.12,1.69030139]
[1751985981415,1.67950373,660.0,659.14,1.69030139]
[1751985982320,1.67950373,659.93,659.19,1.69030139]
[1751985982816,1.67950373,659.92,659.18,1.69030139]
[1751985983016,1.67950373,659.91,659.19,1.69030139]
[1751985983212,1.67950373,659.9,659.2,1.69030139]
[1751985983618,1.67950373,659.89,659.21,1.69030139]
[1751985984220,1.67950373,659.88,659.22,1.69030139]
[1751985984515,1.67950373,659.87,659.23,1.69030139]
[1751985985320,1.67950373,659.85,659.24,1.69030139]
[1751985986320,1.67950373,659.84,659.24,1.69030139]
[1751985986916,1.67950373,659.87,659.2,1.69030139]
[1751985987430,1.67950373,659.86,659.21,1.69030139]
[1751985988327,1.67950373,659.85,659.22,1.69030139]
[1751985988523,1.67950373,659.79,659.16,1.69030139]
[1751985990022,1.67950373,659.79,659.17,1.69030139]
[1751985990423,1.67950373,659.78,659.17,1.69030139]
[1751985992026,1.67950373,659.75,659.14,1.69030139]
[1751985992229,1.67950373,659.75,659.13,1.69030139]
[1751985992629,1.67950373,659.76,659.14,1.69030139]
[1751985994328,1.67950373,659.73,659.18,1.69030139]
[1751985994627,1.67950373,659.74,659.18,1.69030139]
[1751985994931,1.67950373,659.73,659.18,1.69030139]
[1751985995633,1.67950373,659.74,659.18,1.69030139]
[1751985997135,1.67950373,659.74,659.17,1.69030139]
[1751985997435,1.67950373,659.76,659.19,1.69030139]
[1751985997636,1.67950373,659.77,659.2,1.69030139]
[1751985997932,1.67950373,659.78,659.21,1.69030139]
[1751985999636,1.67950373,659.8,659.24,1.69030139]
[1751986003134,1.67950373,659.79,659.26,1.69030139]
[1751986003537,1.67950373,659.8,659.25,1.69030139]
[1751986004137,1.67950373,659.79,659.25,1.69030139]
[1751986004434,1.67950373,659.79,659.26,1.69030139]
[1751986006636,1.67950373,659.78,659.26,1.69030139]
[1751986007037,1.67950373,659.81,659.24,1.69030139]
[1751986007239,1.67950373,659.86,659.26,1.69030139]
[1751986007435,1.67950373,659.93,659.34,1.69030139]
[1751986009441,1.67950373,659.94,659.34,1.69030139]
[1751986010341,1.67950373,659.93,659.34,1.69030139]
[1751986010543,1.67950373,659.94,659.34,1.69030139]
[1751986015543,1.67950373,659.94,659.08,3.38736166]
[1751986015544,1.67950373,660.05,659.4,1.69030139]
[1751986015843,1.67950373,660.04,659.39,1.69030139]
[1751986016238,1.67950373,660.05,659.39,1.69030139]
[1751986016739,1.67950373,660.06,659.37,1.69030139]
[1751986016942,1.67950373,660.09,659.4,1.69030139]
[1751986017339,1.67950373,660.1,659.39,1.69030139]
[1751986019442,1.67950373,660.11,659.38,1.69030139]
[1751986019841,1.67950373,660.1,659.4,1.69030139]
[1751986021247,1.67950373,660.09,659.4,1.69030139]
[1751986021448,1.67950373,660.1,659.4,1.69030139]
[1751986021644,1.67950373,660.1,659.41,1.69030139]
[1751986021948,1.67950373,660.09,659.41,1.69030139]
[1751986022149,1.67950373,660.1,659.41,1.69030139]
[1751986022648,1.67950373,660.09,659.42,1.69030139]
[1751986023350,1.67950373,660.1,659.42,1.69030139]
[1751986024145,1.67950373,660.1,659.41,1.69030139]
[1751986024844,1.67950373,660.14,659.34,1.69030139]
[1751986025249,1.67950373,660.15,659.34,1.69030139]
[1751986025751,1.67950373,660.15,659.33,1.69030139]
[1751986026550,1.67950373,660.15,659.34,1.907]
[1751986026750,1.67950373,660.15,659.34,3.59730139]
[1751986027050,1.67950373,660.14,659.34,3.59730139]
[1751986027246,1.67950373,660.15,659.34,3.59730139]
[1751986027646,1.67950373,660.11,659.34,1.907]
[1751986027950,1.67950373,660.09,659.34,1.907]
[1751986032253,1.67950373,660.1,659.34,1.907]
[1751986033552,1.67950373,660.07,659.34,1.907]
[1751986034555,1.67950373,660.05,659.34,1.907]
[1751986037060,1.67950373,660.06,659.34,1.907]
[1751986037456,1.67950373,660.05,659.34,1.907]
[1751986039556,1.67950373,660.04,659.34,1.907]
[1751986040462,1.67950373,660.05,659.34,1.907]
[1751986043059,1.67950373,660.05,659.34,3.59730139]
[1751986044064,1.67950373,660.06,659.34,1.907]
[1751986045364,1.67950373,660.05,659.34,1.907]
[1751986045768,0.98323319,660.18,659.34,1.907]
[1751986046064,1.68815024,660.05,659.34,1.907]
[1751986049167,1.68815024,660.04,659.34,1.907]
[1751986049769,1.68815024,660.05,659.34,3.60430603]
[1751986049971,1.68815024,660.09,659.34,1.907]
[1751986050266,1.68815024,660.08,659.34,1.907]
[1751986052474,1.68815024,660.09,659.34,1.907]
[1751986052871,1.68815024,660.16,659.39,1.69730603]